bitfinex/quotes_BTCUSD_20250916
["timestamp","ask_amount","ask_price","bid_price","bid_amount"]
[1758047431568,0.2191978,116600.0,116590.0,0.90978786]
[1758047431843,0.19973658,116600.0,116590.0,0.41858705]
[1758047432085,0.22307658,116600.0,116590.0,0.68746705]
[1758047432307,0.30301539,116600.0,116590.0,0.08894705]
[1758047432548,0.77771475,116600.0,116590.0,0.35782705]
[1758047432774,0.77671475,116600.0,116590.0,0.35482705]
[1758047433003,0.37001539,116600.0,116590.0,0.35182705]
[1758047433424,0.37201539,116600.0,116590.0,0.35682705]
[1758047433640,0.77671475,116600.0,116590.0,0.35690705]
[1758047433859,0.77571475,116600.0,116590.0,0.35390705]
[1758047434086,0.77671475,116600.0,116590.0,0.35690705]
[1758047434526,0.77571475,116600.0,116590.0,0.35490705]
[1758047435846,0.37101539,116600.0,116590.0,0.35490705]
[1758047436063,0.37201539,116600.0,116590.0,0.35790705]
[1758047437156,0.77671475,116600.0,116590.0,0.35790705]
[1758047437595,0.77671475,116600.0,116590.0,0.00654705]
[1758047437824,0.77671475,116600.0,116590.0,0.27542705]
[1758047438714,0.37201539,116600.0,116590.0,0.27542705]
[1758047438927,0.37201539,116600.0,116590.0,0.68012641]
[1758047440024,0.37201539,116600.0,116590.0,0.27542705]
[1758047440244,0.77671475,116600.0,116590.0,0.00654705]
[1758047440466,0.77671475,116600.0,116590.0,0.27546705]
[1758047441377,0.77571475,116600.0,116590.0,0.27246705]
[1758047442041,0.77471475,116600.0,116590.0,0.26946705]
[1758047442264,0.77471475,116600.0,116590.0,0.27046705]
[1758047442483,0.77571475,116600.0,116590.0,0.27046705]
[1758047442699,0.77471475,116600.0,116590.0,0.26946705]
[1758047442916,0.77571475,116600.0,116590.0,0.27146705]
[1758047443133,0.77671475,116600.0,116590.0,0.27246705]
[1758047443345,0.34777539,116600.0,116590.0,0.67516641]
[1758047443561,0.37152539,116600.0,116590.0,0.67516641]
[1758047443785,0.37252539,116600.0,116590.0,0.67716641]
[1758047445788,0.37252539,116600.0,116590.0,0.27246705]
[1758047446245,0.77722475,116600.0,116590.0,0.27246705]
[1758047447757,0.77722475,116600.0,116590.0,0.00354705]
[1758047448406,0.77722475,116600.0,116590.0,0.27246705]
[1758047448606,0.75347475,116600.0,116590.0,0.27246705]
[1758047448817,0.77722475,116600.0,116590.0,0.27246705]
[1758047449347,0.37252539,116600.0,116590.0,0.27246705]
[1758047449596,0.77722475,116600.0,116590.0,0.00354705]
[1758047450223,0.77722475,116600.0,116590.0,0.27250705]
[1758047450429,0.37252539,116600.0,116590.0,0.00354705]
[1758047450600,0.77722475,116600.0,116590.0,0.00344705]
[1758047450883,0.37252539,116600.0,116590.0,0.00344705]
[1758047451077,0.77722475,116600.0,116590.0,0.00344705]
[1758047452025,0.64168539,116600.0,116590.0,0.00344705]
[1758047452233,1.04638475,116600.0,116590.0,0.00344705]
[1758047454322,0.77722475,116600.0,116590.0,0.00344705]
[1758047455833,0.37252539,116600.0,116590.0,0.00344705]
[1758047456066,0.73241905,116600.0,116590.0,0.00344705]
[1758047456281,0.74842809,116600.0,116590.0,0.00344705]
[1758047458245,0.86508144,116600.0,116590.0,0.00344705]
[1758047458580,0.89085651,116600.0,116590.0,0.00344705]
[1758047459436,0.80004285,116600.0,116590.0,0.00344705]
[1758047459659,0.89087012,116600.0,116590.0,0.00344705]
[1758047459843,1.15991012,116600.0,116590.0,0.00344705]
[1758047460013,0.53097646,116600.0,116590.0,0.00344705]
[1758047460219,0.3343843,116600.0,116590.0,0.00344705]
[1758047460421,0.57650923,116600.0,116590.0,0.00344705]
[1758047461011,0.30747514,116600.0,116590.0,0.00344705]
[1758047462075,0.57651514,116600.0,116590.0,0.00344705]
[1758047462553,0.9364088,116600.0,116590.0,0.00344705]
[1758047462773,0.92038024,116600.0,116590.0,0.00344705]
[1758047462978,1.00688169,116600.0,116590.0,0.00344705]
[1758047463763,1.02291669,116600.0,116590.0,0.00344705]
[1758047464014,0.66302303,116600.0,116590.0,0.00344705]
[1758047464224,0.64698803,116600.0,116590.0,0.00344705]
[1758047464947,1.02291478,116600.0,116590.0,0.00344705]
[1758047465202,1.00688169,116600.0,116590.0,0.00344705]
[1758047465822,1.46353504,116600.0,116590.0,0.00344705]
[1758047466100,1.8234287,116600.0,116590.0,0.00344705]
[1758047466309,1.86523486,116600.0,116590.0,0.00344705]
[1758047466521,0.90158685,116590.0,116580.0,0.0004]
[1758047466733,1.09061596,116590.0,116580.0,0.0004]
[1758047466945,1.09282596,116590.0,116580.0,0.0004]
[1758047467149,1.11871596,116590.0,116580.0,0.0004]
[1758047467362,1.12215301,116590.0,116580.0,0.0004]
[1758047468566,1.12313725,116590.0,116580.0,0.0004]
[1758047469010,1.13176426,116590.0,116580.0,0.0004]
[1758047469214,0.95536915,116590.0,116580.0,0.0004]
[1758047469419,1.31526281,116590.0,116580.0,0.0004]
[1758047471701,1.04626281,116590.0,116580.0,0.0004]
[1758047471915,1.31534281,116590.0,116580.0,0.0004]
[1758047472341,1.04626281,116590.0,116580.0,0.0004]
[1758047472579,1.13276426,116590.0,116580.0,0.0004]
[1758047472771,0.7728706,116590.0,116580.0,0.0004]
[1758047472899,1.40188426,116590.0,116580.0,0.0004]
[1758047473336,1.13276426,116590.0,116580.0,0.0004]
[1758047473553,1.40188426,116590.0,116580.0,0.0004]
[1758047473758,1.13276426,116590.0,116580.0,0.0004]
[1758047474416,1.40184426,116590.0,116580.0,0.0004]
[1758047475050,1.0419506,116590.0,116580.0,0.0004]
[1758047475275,1.13276426,116590.0,116580.0,0.0004]
[1758047475502,0.7427187,116590.0,116580.0,0.0004]
[1758047475743,1.0118387,116590.0,116580.0,0.0004]
[1758047476216,1.37173236,116590.0,116580.0,0.0004]
[1758047476444,1.10261236,116590.0,116580.0,0.0004]
[1758047476661,1.37173236,116590.0,116580.0,0.0004]
[1758047476864,1.0118387,116590.0,116580.0,0.0004]
[1758047477136,0.7427187,116590.0,116580.0,0.0004]
[1758047477348,1.0118387,116590.0,116580.0,0.0004]
[1758047478013,0.73409169,116590.0,116580.0,0.0004]
[1758047478251,0.91671024,116590.0,116580.0,0.0004]
[1758047479148,0.64759024,116590.0,116580.0,0.0004]
[1758047479393,0.91671024,116590.0,116580.0,0.0004]
[1758047481029,0.64759024,116590.0,116580.0,0.0004]
[1758047481247,0.91683024,116590.0,116580.0,0.0004]
[1758047483461,0.91683317,116590.0,116580.0,0.0004]
[1758047484583,1.27672683,116590.0,116580.0,0.0004]
[1758047485451,0.91683317,116590.0,116580.0,0.0004]
[1758047486739,0.64759317,116590.0,116580.0,0.0004]
[1758047486935,0.91679317,116590.0,116580.0,0.0004]
[1758047488462,0.46221172,116590.0,116580.0,0.36029366]
[1758047488666,0.19309172,116590.0,116580.0,0.36029366]
[1758047488900,0.17707834,116590.0,116580.0,0.37431366]
[1758047489114,0.17364129,116590.0,116580.0,0.37431366]
[1758047489936,0.17364129,116590.0,116580.0,0.01442]
[1758047490148,0.17364129,116590.0,116580.0,0.0315756]
[1758047490355,0.21861102,116590.0,116580.0,0.0315756]
[1758047490978,0.21861102,116590.0,116580.0,0.01442]
[1758047491239,0.22072102,116590.0,116580.0,0.0004]
[1758047491506,0.26263524,116590.0,116580.0,0.0004]
[1758047494259,0.26263613,116590.0,116580.0,0.0004]
[1758047499535,0.2176664,116590.0,116580.0,0.0004]
[1758047499772,0.1896664,116590.0,116580.0,0.36029366]
[1758047500025,0.1896664,116590.0,116580.0,0.37431366]
[1758047500752,0.17364129,116590.0,116580.0,0.54586967]
[1758047500879,0.17364129,116590.0,116580.0,0.37431366]
[1758047501086,0.2221885,116590.0,116580.0,0.64331366]
[1758047501484,0.17364129,116590.0,116580.0,0.81486967]
[1758047501768,0.17364129,116590.0,116580.0,0.28342]
[1758047501975,0.17364129,116590.0,116580.0,0.64331366]
[1758047502180,0.17364129,116590.0,116580.0,0.62929366]
[1758047502409,0.17329531,116590.0,116580.0,0.2694]
[1758047504595,0.17848531,116590.0,116580.0,0.26944]
[1758047504813,0.20225531,116590.0,116580.0,0.26944]
[1758047505518,0.25815055,116590.0,116580.0,0.26944]
[1758047506418,0.23438055,116590.0,116580.0,0.26944]
[1758047506648,0.17329531,116590.0,116580.0,0.28346]
[1758047507024,0.17329531,116590.0,116580.0,0.64335366]
[1758047507250,0.17848531,116590.0,116580.0,0.0004]
[1758047507577,0.17848531,116590.0,116580.0,0.26936]
[1758047507786,0.25577355,116590.0,116580.0,0.26936]
[1758047508896,0.23200355,116590.0,116580.0,0.26936]
[1758047509049,0.22894355,116590.0,116580.0,0.26936]
[1758047509269,0.17329531,116590.0,116580.0,0.28338]
[1758047509471,0.17329531,116590.0,116580.0,0.64327366]
[1758047511853,0.17329531,116590.0,116580.0,0.28338]
[1758047515950,0.17329531,116590.0,116580.0,0.68823544]
[1758047516165,0.17848531,116590.0,116580.0,0.67421544]
[1758047516382,0.28847676,116590.0,116580.0,0.67421544]
[1758047516847,0.6933322,116590.0,116580.0,0.0004]
[1758047517083,0.6933322,116590.0,116580.0,0.2692]
[1758047517548,0.70935749,116590.0,116580.0,0.2692]
[1758047518494,0.28847676,116590.0,116580.0,0.2692]
[1758047521512,0.17329531,116590.0,116580.0,0.26932]
[1758047521693,0.17329531,116590.0,116580.0,0.28334]
[1758047521823,0.20197531,116590.0,116580.0,0.67417544]
[1758047522023,0.20197531,116590.0,116580.0,0.26932]
[1758047522238,0.28847676,116590.0,116580.0,0.01932]
[1758047522671,0.26194676,116590.0,116580.0,0.01932]
[1758047522888,0.25979676,116590.0,116580.0,0.01932]
[1758047523095,0.25979676,116590.0,116580.0,0.42417544]
[1758047525021,0.28935676,116590.0,116580.0,0.42417544]
[1758047525730,0.28935676,116590.0,116580.0,0.01932]
[1758047527111,0.28935676,116590.0,116570.0,0.50177544]
[1758047527340,0.17155601,116580.0,116570.0,0.48783606]
[1758047527574,0.24720729,116580.0,116570.0,0.35174062]
[1758047527800,0.24720729,116580.0,116570.0,0.75659606]
[1758047528028,0.24720729,116580.0,116570.0,0.35174062]
[1758047528672,0.24720729,116580.0,116570.0,0.75659606]
[1758047528844,0.24730729,116580.0,116570.0,0.75659606]
[1758047529069,0.24730729,116580.0,116570.0,0.00058062]
[1758047529070,0.62773273,116580.0,116570.0,0.00058062]
[1758047529278,0.65216273,116580.0,116570.0,0.00058062]
[1758047529682,0.6681985,116580.0,116570.0,0.00058062]
[1758047529844,1.0080385,116580.0,116570.0,0.00058062]
[1758047530318,1.00803426,116580.0,116570.0,0.00048062]
[1758047530523,1.00903426,116580.0,116570.0,0.00148062]
[1758047530864,1.00903456,116580.0,116570.0,0.00148062]
[1758047531282,0.99300273,116580.0,116570.0,0.00148062]
[1758047531498,0.72416273,116580.0,116570.0,0.00148062]
[1758047531699,0.31930729,116580.0,116570.0,0.00148062]
[1758047531931,0.72416273,116580.0,116570.0,0.00148062]
[1758047532848,0.29487729,116580.0,116570.0,0.00148062]
[1758047533108,0.31930729,116580.0,116570.0,0.00148062]
[1758047533359,0.31930729,116580.0,116570.0,0.40633606]
[1758047534810,0.34508444,116580.0,116570.0,0.40633606]
[1758047539762,0.34508444,116580.0,116570.0,0.00148062]
[1758047539974,0.74993988,116580.0,116570.0,0.00148062]
[1758047540596,0.7659757,116580.0,116570.0,0.00148062]
[1758047543445,1.0346557,116580.0,116570.0,0.00148062]
[1758047543885,1.01861988,116580.0,116570.0,0.00148062]
[1758047544119,0.74993988,116580.0,116570.0,0.00148062]
[1758047544330,1.03465351,116580.0,116570.0,0.00148062]
[1758047548244,0.34508444,116580.0,116570.0,0.00148062]
[1758047548488,0.74993988,116580.0,116570.0,0.00148062]
[1758047548605,0.76598054,116580.0,116570.0,0.00148062]
[1758047549017,0.3611251,116580.0,116570.0,0.00148062]
[1758047549442,1.03482054,116580.0,116570.0,0.00148062]
[1758047549654,0.76598054,116580.0,116570.0,0.00148062]
[1758047549861,0.6299251,116580.0,116570.0,0.00148062]
[1758047550077,1.43963598,116580.0,116570.0,0.00148062]
[1758047550314,1.43963598,116580.0,116570.0,6.2e-07]
[1758047550315,1.91846237,116580.0,116570.0,6.2e-07]
[1758047550550,1.89628933,116580.0,116570.0,6.2e-07]
[1758047550784,1.89744933,116580.0,116570.0,6.2e-07]
[1758047551038,1.89748933,116580.0,116570.0,6.2e-07]
[1758047551259,0.81677845,116580.0,116570.0,6.2e-07]
[1758047551508,1.89644933,116580.0,116570.0,6.2e-07]
[1758047551760,1.62648933,116580.0,116570.0,6.2e-07]
[1758047552211,1.89652933,116580.0,116570.0,6.2e-07]
[1758047552702,0.17157073,116570.0,116560.0,0.0002]
[1758047552931,0.7264254,116570.0,116560.0,0.0002]
[1758047553148,0.7559854,116570.0,116560.0,0.0002]
[1758047553374,0.78186647,116570.0,116560.0,0.0002]
[1758047553887,0.81301837,116570.0,116560.0,0.0002]
[1758047554108,0.81401837,116570.0,116560.0,0.0012]
[1758047554564,1.15401837,116570.0,116560.0,0.0012]
[1758047555251,1.55887381,116570.0,116560.0,0.0012]
[1758047555480,1.58104685,116570.0,116560.0,1e-08]
[1758047555959,0.17161489,116540.0,116530.0,0.0003]
[1758047556195,1.32639041,116540.0,116530.0,0.00034695]
[1758047556435,1.38532231,116540.0,116530.0,0.00034695]
[1758047556647,1.38876072,116540.0,116530.0,0.00034695]
[1758047557124,1.38886072,116540.0,116530.0,0.00024695]
[1758047557371,1.38986072,116540.0,116530.0,0.00024695]
[1758047557941,1.12082072,116540.0,116530.0,0.00024695]
[1758047558147,1.39098072,116540.0,116530.0,0.00024695]
[1758047558973,1.39102072,116540.0,116530.0,0.00024695]
[1758047560374,1.39970755,116540.0,116530.0,0.00024695]
[1758047562490,1.12950755,116540.0,116530.0,0.00024695]
[1758047562704,1.39960143,116540.0,116530.0,0.00024695]
[1758047563366,0.99474599,116540.0,116530.0,0.00024695]
[1758047563565,1.39960143,116540.0,116530.0,0.00024695]
[1758047564016,0.99474599,116540.0,116530.0,0.00024695]
[1758047564230,0.67089409,116540.0,116530.0,0.00024695]
[1758047564450,1.34280953,116540.0,116530.0,0.00137695]
[1758047564673,0.66779409,116540.0,116530.0,0.00024695]
[1758047564896,1.34284953,116540.0,116530.0,0.00137695]
[1758047565413,1.36948953,116540.0,116530.0,0.00024695]
[1758047565755,1.09928953,116540.0,116530.0,0.00024695]
[1758047565978,1.36948953,116540.0,116530.0,0.00024695]
[1758047566609,0.25924581,116540.0,116530.0,0.00024695]
[1758047566804,0.50062581,116540.0,116530.0,0.00137695]
[1758047567009,0.23046581,116540.0,116530.0,0.00137695]
[1758047567215,0.50062581,116540.0,116530.0,0.42025239]
[1758047567578,0.23046581,116540.0,116530.0,0.42025239]
[1758047567780,0.23046581,116540.0,116530.0,0.42096239]
[1758047568025,0.50074581,116540.0,116530.0,0.42096239]
[1758047568475,0.50102581,116540.0,116530.0,0.01610695]
[1758047568698,0.50102581,116540.0,116530.0,0.03326991]
[1758047568972,0.50102581,116540.0,116530.0,0.43812535]
[1758047569203,0.50102581,116540.0,116530.0,0.42096239]
[1758047570439,0.50102581,116540.0,116530.0,0.01539695]
[1758047570661,0.50102581,116540.0,116530.0,0.43741535]
[1758047570882,0.91112125,116540.0,116530.0,0.00024695]
[1758047571095,0.93466125,116540.0,116530.0,0.00024695]
[1758047576909,1.27466125,116540.0,116530.0,0.00024695]
[1758047577819,1.23016566,116540.0,116530.0,0.00024695]
[1758047578016,1.2301967,116540.0,116530.0,0.00024695]
[1758047578834,1.23020153,116540.0,116530.0,0.00024695]
[1758047579269,1.23032153,116540.0,116530.0,0.00024695]
[1758047580335,0.93610153,116540.0,116530.0,0.00024695]
[1758047580559,1.23061153,116540.0,116530.0,0.00024695]
[1758047582666,1.20134153,116540.0,116530.0,0.00137695]
[1758047582916,1.20659153,116540.0,116530.0,0.00024695]
[1758047583126,1.23054153,116540.0,116530.0,0.00024695]
[1758047584009,1.34719488,116540.0,116530.0,0.00024695]
[1758047584514,0.5320042,116520.0,116510.0,5e-05]
[1758047584768,0.88890628,116520.0,116510.0,5e-05]
[1758047584984,0.89088628,116520.0,116510.0,5e-05]
[1758047585199,0.94231628,116520.0,116510.0,5e-05]
[1758047585854,0.94531628,116520.0,116510.0,0.00105]
[1758047586062,0.94541628,116520.0,116510.0,0.00105]
[1758047587870,0.94581628,116520.0,116510.0,0.00105]
[1758047588503,1.28581628,116520.0,116510.0,0.00105]
[1758047588717,0.92545643,116520.0,116510.0,0.00105]
[1758047588929,0.74107788,116520.0,116510.0,0.00105]
[1758047589089,1.37235773,116520.0,116510.0,0.00105]
[1758047589302,1.10143773,116520.0,116510.0,0.00105]
[1758047589504,1.37235773,116520.0,116510.0,0.00105]
[1758047590145,1.10144868,116520.0,116510.0,0.00105]
[1758047590488,1.37236868,116520.0,116510.0,0.00105]
[1758047590693,1.10144868,116520.0,116510.0,0.00105]
[1758047590895,1.37236868,116520.0,116510.0,0.00105]
[1758047591056,1.10144868,116520.0,116510.0,0.00105]
[1758047591258,1.37232868,116520.0,116510.0,0.00105]
[1758047591505,0.74108883,116520.0,116510.0,0.00105]
[1758047591737,1.37232868,116520.0,116510.0,0.00105]
[1758047591981,1.44232868,116520.0,116510.0,0.00105]
[1758047592486,1.17144868,116520.0,116510.0,0.00105]
[1758047592919,1.44244868,116520.0,116510.0,0.00105]
[1758047595026,1.14354868,116520.0,116510.0,0.00218]
[1758047595268,1.41454868,116520.0,116510.0,0.00218]
[1758047595512,1.44240868,116520.0,116510.0,0.00105]
[1758047595914,1.08204883,116520.0,116510.0,0.00105]
[1758047596263,1.44240868,116520.0,116510.0,0.00105]
[1758047596482,1.44239597,116520.0,116510.0,0.00105]
[1758047597355,1.08203612,116520.0,116510.0,0.00105]
[1758047597586,1.44239597,116520.0,116510.0,0.00105]
[1758047597804,1.08203612,116520.0,116510.0,0.00105]
[1758047598053,1.44239597,116520.0,116510.0,0.00105]
[1758047602138,1.17143597,116520.0,116510.0,0.00105]
[1758047602562,1.44395597,116520.0,116510.0,0.00105]
[1758047603302,1.08359612,116520.0,116510.0,0.00105]
[1758047603437,1.44395597,116520.0,116510.0,0.00105]
[1758047603654,1.44195597,116520.0,116510.0,0.00105]
[1758047603878,1.08259612,116520.0,116510.0,0.00105]
[1758047604105,1.08259612,116520.0,116510.0,5e-05]
[1758047604106,1.44195597,116520.0,116510.0,5e-05]
[1758047604309,1.83246772,116520.0,116510.0,5e-05]
[1758047604483,1.47310787,116520.0,116510.0,0.00105]
[1758047604868,1.20058787,116520.0,116510.0,0.00105]
[1758047605081,1.47246787,116520.0,116510.0,5e-05]
[1758047605512,1.47346787,116520.0,116510.0,0.00105]
[1758047606084,1.11310802,116520.0,116510.0,0.00105]
[1758047606277,1.47346787,116520.0,116510.0,0.00105]
[1758047607128,1.20058787,116520.0,116510.0,0.00105]
[1758047607347,0.81733802,116520.0,116510.0,0.00105]
[1758047607568,1.11306802,116520.0,116510.0,0.00105]
[1758047607794,0.81733802,116520.0,116510.0,0.00105]
[1758047608023,1.47342787,116520.0,116510.0,0.00105]
[1758047608521,1.11306802,116520.0,116510.0,0.00105]
[1758047608765,1.47047787,116520.0,116510.0,0.00105]
[1758047609015,1.11314802,116520.0,116510.0,0.00105]
[1758047609265,1.47350787,116520.0,116510.0,0.00105]
[1758047611595,1.11314802,116520.0,116510.0,0.00105]
[1758047611813,1.47350787,116520.0,116510.0,0.00105]
[1758047613676,1.47354334,116520.0,116510.0,0.00105]
[1758047614728,1.11318349,116520.0,116510.0,0.00105]
[1758047614911,1.47354334,116520.0,116510.0,0.00105]
[1758047615318,1.17773334,116520.0,116510.0,0.00105]
[1758047615520,1.47417334,116520.0,116510.0,0.00105]
[1758047616082,1.11381349,116520.0,116510.0,0.00105]
[1758047616282,1.47417369,116520.0,116510.0,0.00105]
[1758047620306,1.11381384,116520.0,116510.0,0.00105]
[1758047620517,1.47417369,116520.0,116510.0,0.00105]
[1758047621714,1.11381384,116520.0,116510.0,0.00105]
[1758047621919,1.47417369,116520.0,116510.0,0.00105]
[1758047622922,0.84085384,116520.0,116510.0,0.00105]
[1758047623160,1.11365384,116520.0,116510.0,0.00105]
[1758047623762,0.19060908,116510.0,116500.0,0.36055985]
[1758047623969,0.594535,116510.0,116500.0,0.0002]
[1758047624298,0.594535,116510.0,116500.0,0.36168985]
[1758047624488,0.318795,116510.0,116500.0,0.36168985]
[1758047624695,0.55199053,116510.0,116500.0,0.36168985]
[1758047625094,0.55409053,116510.0,116500.0,0.36168985]
[1758047625302,0.57013638,116510.0,116500.0,0.36168985]
[1758047625530,0.57113638,116510.0,116500.0,0.36268985]
[1758047627931,0.59461638,116510.0,116500.0,0.36268985]
[1758047628140,0.60313168,116510.0,116500.0,0.36268985]
[1758047628335,0.60313168,116510.0,116500.0,0.00233]
[1758047628552,0.60611168,116510.0,116500.0,0.36268985]
[1758047629011,0.58263168,116510.0,116500.0,0.36268985]
[1758047629344,0.57965168,116510.0,116500.0,0.36268985]
[1758047629789,0.57749168,116510.0,116500.0,0.36268985]
[1758047630019,0.56873638,116510.0,116500.0,0.37741985]
[1758047630217,0.55269053,116510.0,116500.0,0.37670985]
[1758047630603,0.19370908,116510.0,116500.0,0.37741985]
[1758047630808,0.19370908,116510.0,116500.0,0.54909366]
[1758047631728,0.02205,116510.0,116500.0,0.54909366]
[1758047631876,0.19370908,116510.0,116500.0,0.54909366]
[1758047632806,0.19370908,116510.0,116500.0,0.18873381]
[1758047633051,0.28021053,116510.0,116500.0,0.82141366]
[1758047633463,0.28021053,116510.0,116500.0,0.46115381]
[1758047633666,0.28021053,116510.0,116500.0,0.82151366]
[1758047635804,0.02205,116510.0,116500.0,1.26837496]
[1758047636238,0.02205,116510.0,116500.0,1.30801511]
[1758047636415,3.53999615,116510.0,116500.0,1.30801511]
[1758047636642,3.53999615,116510.0,116500.0,1.7342923]
[1758047636844,3.53989615,116510.0,116500.0,2.0642123]
[1758047637049,3.53989615,116510.0,116500.0,2.08999417]
[1758047637403,3.53889615,116510.0,116500.0,2.08899417]
[1758047637603,3.53889615,116510.0,116500.0,1.81667417]
[1758047637804,3.53789615,116510.0,116500.0,1.81667417]
[1758047638103,3.53989615,116510.0,116500.0,1.45931432]
[1758047638316,3.53889615,116510.0,116500.0,1.45931432]
[1758047638671,3.53989615,116510.0,116500.0,1.43353245]
[1758047638873,3.53989615,116510.0,116500.0,1.70593245]
[1758047638991,3.53989615,116510.0,116500.0,1.43353245]
[1758047639195,3.61618629,116510.0,116500.0,1.70589245]
[1758047639829,3.61618629,116510.0,116500.0,2.1558611]
[1758047640254,3.53989615,116510.0,116500.0,2.1558611]
[1758047641399,3.53989615,116510.0,116500.0,1.8835011]
[1758047641608,3.53989615,116510.0,116500.0,2.1557411]
[1758047648069,3.53989615,116510.0,116500.0,2.1558211]
[1758047652122,3.53989615,116510.0,116500.0,1.75065685]
[1758047652335,3.6263976,116510.0,116500.0,1.75065685]
[1758047653401,3.6263976,116510.0,116500.0,2.1558211]
[1758047654238,3.52094615,116510.0,116500.0,2.1368711]
[1758047656551,3.52094615,116510.0,116500.0,2.16265438]
[1758047657549,3.52094615,116510.0,116500.0,1.97277438]
[1758047658179,3.52094615,116510.0,116500.0,2.24465438]
[1758047658397,3.52094615,116510.0,116500.0,2.47277438]
[1758047658634,3.6074476,116510.0,116500.0,2.04182685]
[1758047658844,3.6074476,116510.0,116500.0,2.31386685]
[1758047659099,3.6074476,116510.0,116500.0,2.31382685]
[1758047660217,3.6074476,116510.0,116500.0,2.04182685]
[1758047660440,3.6074476,116510.0,116500.0,1.97590951]
[1758047660650,3.6074476,116510.0,116500.0,1.84790951]
[1758047662435,3.6074476,116510.0,116500.0,1.51798951]
[1758047663488,3.52094615,116510.0,116500.0,1.51798951]
[1758047663903,3.52094615,116510.0,116500.0,1.11282526]
[1758047664115,3.52094615,116510.0,116500.0,1.51798951]
[1758047665341,3.52094615,116510.0,116500.0,1.51883951]
[1758047666199,3.52094615,116510.0,116500.0,1.11367526]
[1758047666397,3.6074476,116510.0,116500.0,1.51883951]
[1758047667394,3.6074476,116510.0,116500.0,1.11367526]
[1758047667605,3.6095676,116510.0,116500.0,1.51891951]
[1758047667822,3.6074476,116510.0,116500.0,1.51891951]
[1758047668664,3.6074476,116510.0,116500.0,1.11375526]
[1758047668864,3.6074476,116510.0,116500.0,1.51891951]
[1758047670563,3.6074476,116510.0,116500.0,1.24683951]
[1758047670782,3.6074476,116510.0,116500.0,1.51883951]
[1758047671089,3.6074476,116510.0,116500.0,1.11367526]
[1758047671294,3.78425668,116510.0,116500.0,0.84456526]
[1758047671513,3.80782668,116510.0,116500.0,1.52168951]
[1758047671935,3.80582668,116510.0,116500.0,1.51868951]
[1758047672308,3.80582668,116510.0,116500.0,1.43518806]
[1758047672531,3.80482668,116510.0,116500.0,1.43218806]
[1758047672804,3.80582668,116510.0,116500.0,1.43318806]
[1758047673011,3.80682668,116510.0,116500.0,1.43618806]
[1758047673220,3.80582668,116510.0,116500.0,1.43518806]
[1758047673564,3.80709668,116510.0,116500.0,1.26451425]
[1758047673774,3.80709668,116510.0,116500.0,0.75906381]
[1758047673985,3.80709668,116510.0,116500.0,1.03098381]
[1758047674237,3.80719668,116510.0,116500.0,1.03098381]
[1758047674653,3.80619668,116510.0,116500.0,1.02798381]
[1758047675074,3.80719668,116510.0,116500.0,1.02886381]
[1758047675349,3.77720668,116510.0,116500.0,1.43302806]
[1758047675544,3.77620668,116510.0,116500.0,1.43302806]
[1758047675745,3.77720668,116510.0,116500.0,1.43302806]
[1758047675964,3.77820668,116510.0,116500.0,1.43402806]
[1758047676299,3.77720668,116510.0,116500.0,1.43302806]
[1758047677220,3.77820668,116510.0,116500.0,1.43402806]
[1758047677444,3.77820668,116510.0,116490.0,0.80516425]
[1758047677717,3.77820668,116510.0,116500.0,0.44343381]
[1758047677718,0.26026053,116510.0,116500.0,0.44343381]
[1758047678153,0.26026053,116510.0,116500.0,0.27176]
[1758047678413,0.26026053,116510.0,116500.0,0.44343381]
[1758047678635,0.25926053,116510.0,116500.0,0.44343381]
[1758047678878,0.25826053,116510.0,116500.0,0.27176]
[1758047679171,0.69341478,116510.0,116500.0,0.27176]
[1758047679424,0.69427752,116510.0,116500.0,0.27176]
[1758047679667,0.69127752,116510.0,116500.0,0.2716]
[1758047679912,0.17167381,116500.0,116490.0,0.16894145]
[1758047680148,0.25817526,116500.0,116490.0,0.44054145]
[1758047680350,0.69232951,116500.0,116490.0,0.44054145]
[1758047680815,0.28726526,116500.0,116490.0,0.35404]
[1758047681533,0.17168855,116490.0,116470.0,0.33860879]
[1758047681768,0.17168855,116490.0,116480.0,0.27172]
[1758047682016,0.66205323,116490.0,116480.0,0.27176]
[1758047683013,0.66305323,116490.0,116480.0,0.27176]
[1758047683241,0.66415323,116490.0,116480.0,0.27176]
[1758047683661,0.17170329,116480.0,116470.0,1.07215105]
[1758047683881,0.57686754,116480.0,116470.0,0.9386668]
[1758047684122,0.61430551,116480.0,116470.0,0.9386668]
[1758047684793,0.61444629,116480.0,116470.0,0.9386668]
[1758047685002,0.61544629,116480.0,116470.0,0.9396668]
[1758047685228,0.61544629,116480.0,116470.0,0.9397668]
[1758047685505,0.61644629,116480.0,116470.0,0.9397668]
[1758047685757,0.03957875,116480.0,116470.0,0.5397668]
[1758047685977,0.61644629,116480.0,116470.0,0.36805024]
[1758047686203,0.61644629,116480.0,116470.0,0.53976827]
[1758047689024,0.21128204,116480.0,116470.0,0.53976827]
[1758047689304,0.61644629,116480.0,116470.0,0.53976827]
[1758047689746,0.61644629,116480.0,116470.0,0.93976827]
[1758047689970,0.03957875,116480.0,116470.0,0.93976827]
[1758047690192,0.61644629,116480.0,116470.0,0.93976827]
[1758047693423,0.21128204,116480.0,116470.0,0.93976827]
[1758047693688,0.61644629,116480.0,116470.0,0.93976827]
[1758047695990,0.03957875,116480.0,116470.0,0.93976827]
[1758047696216,0.00224078,116480.0,116470.0,1.34493252]
[1758047698035,0.00224078,116480.0,116470.0,0.93976827]
[1758047699046,0.00224078,116480.0,116470.0,1.34493252]
[1758047699827,0.00224078,116480.0,116470.0,0.93976827]
[1758047703685,0.00224078,116480.0,116470.0,0.93904827]
[1758047704091,0.00224078,116480.0,116470.0,0.66808827]
[1758047704293,0.00224078,116480.0,116470.0,0.93904827]
[1758047705214,0.00224078,116480.0,116470.0,0.66808827]
[1758047705414,0.00224078,116480.0,116470.0,0.93904827]
[1758047706678,0.17394407,116480.0,116470.0,0.93904827]
[1758047706894,0.00224078,116480.0,116470.0,0.93904827]
[1758047707100,0.04243509,116480.0,116470.0,0.93904827]
[1758047707319,0.01829161,116480.0,116470.0,0.93904827]
[1758047707533,0.1899949,116480.0,116470.0,0.93904827]
[1758047708158,0.17394407,116480.0,116470.0,0.93904827]
[1758047708581,0.18999902,116480.0,116470.0,0.93904827]
[1758047708788,0.25179386,116480.0,116470.0,0.93904827]
[1758047708995,0.26784921,116480.0,116470.0,0.93904827]
[1758047709190,0.26784921,116480.0,116470.0,0.36729024]
[1758047709191,0.25179386,116480.0,116470.0,0.36729024]
[1758047709328,0.25179386,116480.0,116470.0,0.53900827]
[1758047710163,0.2678545,116480.0,116470.0,0.09637024]
[1758047710363,0.61430379,116480.0,116470.0,0.53904827]
[1758047710583,0.63036691,116480.0,116470.0,0.53904827]
[1758047710779,0.62835691,116480.0,116470.0,0.53904827]
[1758047710981,0.26785698,116480.0,116470.0,0.53904827]
[1758047711183,0.26785698,116480.0,116470.0,0.93904827]